Cogmind - Beta 10.2 @@@ ROGUE MODE // 2021.12.13 @ 16:52:25 Player: pGoos Result: Destroyed by Y-54 Guardian with Flak Gun Performance ------------- Evolutions (3) 1500 Regions Visited (6) 1200 Robots Destroyed (52) 260 Value Destroyed (1489) 1489 Prototype IDs (1) 20 Alien Tech Used (0) 0 Bonus (0) 0 TOTAL SCORE: 4469 Bonus ------- None Cogmind --------- Core Integrity 0/700 Matter 300/300 Energy 92/100 System Corruption 1% Temperature Cool (0) Movement Core (1100) Ox21 Location -7/Storage Parts ------- > --- POWER (1) -------- (None) > --- PROPULSION (4) --- (None) > --- UTILITY (6) ------ Cryofiber Web High-capacity Storage Unit High-capacity Storage Unit Advanced Targeting Computer > --- WEAPON (2) ------- (None) > --- INVENTORY (20) --- Cesium-ion Thruster Cryofiber Web Improved Cooling System High-capacity Storage Unit High-capacity Storage Unit High-capacity Storage Unit Improved Signal Interpreter Advanced Targeting Computer System Backup Module Heavy Ion Cannon Heavy Ion Cannon Plasma Cannon Peak State ------------ > --- POWER ------------ Improved Deuterium Engine > --- PROPULSION ------- Aluminum Leg Improved Titanium Leg Improved Titanium Leg Compact Wheel > --- UTILITY ---------- Cryofiber Web High-capacity Storage Unit High-capacity Storage Unit Advanced Sensor Array Advanced Targeting Computer Maneuvering Thrusters > --- WEAPON ----------- Cooled Pulse Rifle Heavy Ion Cannon > --- INVENTORY -------- Ion Engine Light Nuclear Core Cesium-ion Thruster Cryofiber Web Improved Cooling System High-capacity Storage Unit High-capacity Storage Unit High-capacity Storage Unit Improved Signal Interpreter Advanced Targeting Computer Maneuvering Thrusters Hardened Heavy Armor Plating Shield Generator System Backup Module Cooled Pulse Rifle Heavy Ion Cannon Heavy Ion Cannon Plasma Cannon Power Maul [Rating: 43] Favorites ----------- Power Improved Ion Engine Engine Improved Ion Engine Power Core Nuclear Core Propulsion Light Treads Treads Light Treads Leg Improved Titanium Leg Wheel Compact Wheel Flight Unit Cesium-ion Thruster Utility High-capacity Storage Unit Device Cryofiber Web Storage High-capacity Storage Unit Processor Advanced Targeting Computer Protection Medium Armor Plating Weapon Electrolaser Energy Gun Electrolaser Energy Cannon Heavy Particle Cannon Ballistic Gun Assault Rifle Ballistic Cannon Advanced Assault Cannon Impact Weapon Power Maul Build | -11 -10 -9 -9 -8 -7 -7 ------- Run | Scr Mat Mat Min Mat Fac Sto Slots Evolved 6 | . . 2 . 2 2 . Power . | . . . . . . . Propulsion 2 | . . . . 1 1 . Utility 4 | . . 2 . 1 1 . Weapon . | . . . . . . . Parts Attached 84 | 7 8 17 7 21 17 7 Power 12 | 2 . 2 . 3 3 2 Engine 10 | 2 . 2 . 2 3 1 Core 2 | . . . . 1 . 1 Reactor . | . . . . . . . Propulsion 24 | 2 2 3 4 6 7 . Treads 11 | . . 3 2 5 1 . Leg 8 | 2 . . 2 . 4 . Wheel 4 | . 2 . . . 2 . Hover . | . . . . . . . Flight 1 | . . . . 1 . . Utility 27 | 1 4 7 1 8 4 2 Device 12 | . 1 3 1 3 3 1 Storage 6 | 1 2 2 . 1 . . Processor 2 | . 1 . . 1 . . Hackware . | . . . . . . . Protection 7 | . . 2 . 3 1 1 Artifact . | . . . . . . . Weapon 21 | 2 2 5 2 4 3 3 Energy Gun 10 | 1 1 3 2 1 1 1 Energy Cannon 5 | . . 1 . 2 1 1 Ballistic Gun 3 | 1 1 1 . . . . Ballistic Cannon 2 | . . . . 1 1 . Launcher . | . . . . . . . Special Weapon . | . . . . . . . Impact Weapon 1 | . . . . . . 1 Slashing Weapon . | . . . . . . . Piercing Weapon . | . . . . . . . Special Melee Weapon . | . . . . . . . Unidentified Prototypes 1 | . . . . . 1 . Parts Lost 34 | . . 1 . 9 12 12 Power 6 | . . . . 2 2 2 Propulsion 9 | . . . . 1 4 4 Utility 11 | . . . . 4 4 3 Weapon 8 | . . 1 . 2 2 3 Highest Loss Streak 11 | . . 1 . 5 9 11 Average Slot Usage (%) 94 | . 97 99 99 91 91 73 Engine 8 | . 14 11 11 6 5 2 Treads 15 | . . 19 21 24 8 . Leg 5 | . 20 . . . 10 17 Wheel 2 | . 7 2 . . 6 . Device 12 | . 9 11 11 11 15 13 Storage 18 | . 14 22 22 18 15 15 Processor 3 | . 1 . . 4 7 7 Protection 6 | . . 11 11 5 3 1 Energy Gun 12 | . 14 17 21 9 5 3 Energy Cannon 3 | . . 2 . 7 7 3 Ballistic Gun 1 | . 14 1 . . . . Naked Turns . | . . . . . . . Heaviest Build 100 | 13 20 86 85 87 90 100 Greatest Support 80 | 20 20 43 43 63 80 67 Greatest Overweight (x) 29 | 4 1 1 8 1 5 29 Average Overweight (x) . | . . . 1 1 1 2 Largest Inventory Capacity 20 | 6 10 20 20 20 20 20 Average Capacity 17 | 5 6 12 20 20 20 20 Most Carried 20 | 5 10 16 20 20 20 19 Average Carried 15 | 2 6 10 19 19 19 14 Final Capacity 20 | 6 10 20 20 20 20 20 Final Carried 20 | 5 10 16 19 20 19 12 Class Distribution -------------------- 70% | Hauler-Mutant 23% | Mutant 5% | Scavenger-Mutant Dominant Class ---------------- Mutant | -10/Materials Mutant | -9/Materials Hauler-Mutant | -9/Mines Hauler-Mutant | -8/Materials Hauler-Mutant | -7/Factory Hauler-Mutant | -7/Storage Resources | -11 -10 -9 -9 -8 -7 -7 ----------- Run | Scr Mat Mat Min Mat Fac Sto Matter Collected 1263 | 276 109 230 56 225 337 30 Remotely . | . . . . . . . Salvage Created 1880 | 67 328 282 107 375 562 159 Parts 97 | 2 34 17 6 22 13 3 Haulers Intercepted 2 | . 2 . . . . . Recyclers Shooed 7 | . 2 . . 5 . . Parts Field Recycled . | . . . . . . . Retrieved Matter . | . . . . . . . Parts Self-Destructed . | . . . . . . . Prevented . | . . . . . . . Kills | -11 -10 -9 -9 -8 -7 -7 ------- Run | Scr Mat Mat Min Mat Fac Sto Combat Hostiles Destroyed 36 | . 6 5 3 12 7 3 Guns 18 | . 5 2 3 5 3 . Cannons 15 | . . 3 . 5 4 3 AOE 3 | . 1 . . 2 . . Classes Destroyed 11 | 1 5 2 . 1 2 . Worker 5 | . 4 1 . . . . Builder 2 | . 2 . . . . . Hauler 2 | . 2 . . . . . Recycler 3 | 1 . . . . 2 . Operator 1 | . . . . 1 . . Watcher 3 | . 2 . . . 1 . Swarmer 10 | . 6 . 1 3 . . Grunt 13 | . . 1 2 5 3 2 Duelist 3 | . . . . . 2 1 Sentry 9 | . . 4 . 4 1 . Programmer 1 | . . . . . 1 . Best Kill Streak 14 | 1 14 2 2 3 2 3 Combat Bots Only 3 | . 3 2 2 3 2 3 Max Kills in Single Turn 2 | 1 1 2 2 1 1 1 Gunslinging 1 | . . . 1 . . . Exploded 1 | . 1 . . 1 . . Melee . | . . . . . . . Uniques/NPCs Destroyed . | . . . . . . . Combat | -11 -10 -9 -9 -8 -7 -7 -------- Run | Scr Mat Mat Min Mat Fac Sto Damage Taken 5821 | . 266 553 30 1204 1544 2224 Core 998 | . 44 104 . 150 112 588 Absorbed by Shields 153 | . . 32 . 121 . . Core Remaining (%) 82 | 100 82 . 74 72 . . Volleys Fired 164 | 2 29 21 4 50 37 21 Largest 2 | 2 2 2 2 2 2 2 Hottest 150 | 60 60 126 126 150 150 85 Shots Fired 279 | 4 57 35 8 83 70 22 Gun 182 | 4 57 26 8 54 30 3 Cannon 97 | . . 9 . 29 40 19 Launcher . | . . . . . . . Special . | . . . . . . . Kinetic 70 | 2 29 7 . 23 9 . Thermal 178 | . . 27 8 60 61 22 Explosive . | . . . . . . . Electromagnetic 31 | 2 28 1 . . . . Robot Hit Streak 20 | 3 6 17 20 10 10 17 Robot Miss Streak 5 | . 5 2 2 3 3 1 Penetration Max . | . . . . . . . Secondary Targets 4 | . 2 . 1 1 . . Max Gunslinging Chain 1 | . 1 . 1 1 . . Shots Hit Robots 214 | 3 28 29 5 57 54 38 Core Hits 86 | 1 17 10 4 20 26 8 Critical Hits 3 | 1 . . . 1 1 . Critical Kills 2 | . . . . 1 1 . Critical Parts Destroyed 1 | 1 . . . . . . Melee Attacks 22 | . . . . . . 22 Impact 22 | . . . . . . 22 Slashing . | . . . . . . . Piercing . | . . . . . . . Sneak Attacks . | . . . . . . . Combat Hostiles . | . . . . . . . Follow-up Attacks . | . . . . . . . Damage Inflicted 4881 | 41 527 441 99 1445 1242 1086 Guns 1971 | 41 383 299 99 581 510 58 Cannons 1926 | . . 142 . 565 732 487 Explosions 352 | . 144 . . 208 . . Melee 541 | . . . . . . 541 Ramming 91 | . . . . 91 . . Kinetic 739 | 11 84 32 . 440 172 . Thermal 3171 | . 144 399 99 914 1070 545 Explosive . | . . . . . . . Electromagnetic 339 | 30 299 10 . . . . Impact 541 | . . . . . . 541 Slashing . | . . . . . . . Piercing . | . . . . . . . Highest Corruption 3 | . 3 2 2 . 1 1 Average Corruption 2 | . 2 2 2 . 1 1 Corruption Purged . | . . . . . . . Effects 19 | . 8 5 4 . . 2 Message Errors 7 | . 3 2 2 . . . Heat Flow Errors 2 | . 1 1 . . . . Energy Discharges 4 | . . 1 1 . . 2 Data Loss (minor) 2 | . . 1 1 . . . Targeting Errors 3 | . 3 . . . . . Weapon Failures 1 | . 1 . . . . . Overload Shots . | . . . . . . . Overflow Damage 243 | . . . . 127 40 76 Projectiles 66 | . . . . 6 40 20 Explosions 121 | . . . . 121 . . Melee 56 | . . . . . . 56 Knockbacks 14 | . . . . 6 7 1 Impact 1 | . . . . . . 1 Kinetic 13 | . . . . 6 7 . Secondary . | . . . . . . . Self-Inflicted Damage 290 | . 22 . . 268 . . Shots 5 | . 2 . . 3 . . Rammed 9 | . . . . 9 . . Targets Rammed 9 | . . . . 9 . . Kicked . | . . . . . . . Crushed . | . . . . . . . Highest Temperature 550 | . 270 333 125 444 510 550 Average Temperature 178 | . 91 109 64 193 272 260 Received Heat Transfer 1443 | . . 186 18 420 258 561 Effects 10 | . . . . 1 5 4 Shutdowns 1 | . . . . . 1 . Interference 5 | . . . . . 3 2 Matter Decay 2 | . . . . 1 1 . Damage (major) 2 | . . . . . . 2 Siege Activations . | . . . . . . . Robots Corrupted . | . . . . . . . Combat Hostiles . | . . . . . . . Parts Fried . | . . . . . . . Impact Corruptions 3 | . . . . . . 3 Robots Melted . | . . . . . . . Combat Hostiles . | . . . . . . . Parts Melted 13 | . . 4 1 3 5 . Heat Transferred 5406 | . 200 925 222 1543 1739 777 Parts Sabotaged . | . . . . . . . Parts Stolen . | . . . . . . . Parts Stripped . | . . . . . . . Power Chain Reactions 3 | . 3 . . . . . Missiles Intercepted . | . . . . . . . Alert | -11 -10 -9 -9 -8 -7 -7 ------- Run | Scr Mat Mat Min Mat Fac Sto Peak Influence 391 | 5 216 81 50 391 124 65 Initial 109 | . 3 6 31 19 109 22 Average 85 | 2 76 29 19 253 62 27 Maximum Alert Level 1 | . 1 . . 1 . . Low Security (%) 84 | 100 79 100 100 33 100 100 Level 1 15 | . 20 . . 66 . . Level 2 . | . . . . . . . Level 3 . | . . . . . . . Level 4 . | . . . . . . . Level 5 . | . . . . . . . High Security . | . . . . . . . Max Security . | . . . . . . . Squads Dispatched 6 | . . 1 . 2 3 . Investigation 1 | . . . . . 1 . Extermination 1 | . . . . . 1 . Reinforcement 3 | . . 1 . 2 . . Assault . | . . . . . . . Garrison 1 | . . . . . 1 . Intercept . | . . . . . . . Construction Impeded . | . . . . . . . Haulers Reinforced . | . . . . . . . Stealth | -11 -10 -9 -9 -8 -7 -7 --------- Run | Scr Mat Mat Min Mat Fac Sto Distress Signals . | . . . . . . . Communications Jammed . | . . . . . . . Distress Signals . | . . . . . . . Times Spotted 63 | . 8 6 3 29 12 5 Peak Tracking Total 5 | . 3 2 2 4 5 4 Tactical Retreats 9 | . . . . 7 2 . Traps | -11 -10 -9 -9 -8 -7 -7 ------- Run | Scr Mat Mat Min Mat Fac Sto Traps Triggered 8 | . 4 1 . . 2 1 Indirectly . | . . . . . . . Trap Hack Attempts . | . . . . . . . Triggered . | . . . . . . . Disarmed . | . . . . . . . Reprogrammed . | . . . . . . . Reused . | . . . . . . . Traps Extracted . | . . . . . . . Installed . | . . . . . . . Triggered . | . . . . . . . Machines | -11 -10 -9 -9 -8 -7 -7 ---------- Run | Scr Mat Mat Min Mat Fac Sto Machines Disabled 7 | . . . . 6 . 1 Max in Single Turn 3 | . . . . 3 . 1 Machines Sabotaged . | . . . . . . . Garrisons Compromised . | . . . . . . . Overloaded Fab Kills . | . . . . . . . Fab Network Shutdowns . | . . . . . . . Hacking | -11 -10 -9 -9 -8 -7 -7 --------- Run | Scr Mat Mat Min Mat Fac Sto Machines Accessed 11 | . 2 1 1 4 3 . Terminals 9 | . 2 1 . 4 2 . Fabricators . | . . . . . . . Repair Stations . | . . . . . . . Recycling Units . | . . . . . . . Scanalyzers . | . . . . . . . Garrison Access 1 | . . . . . 1 . Total Hacks 30 | . 5 2 1 16 6 . Successful 13 | . 2 1 1 7 2 . Failed 17 | . 3 1 . 9 4 . Catastrophic 2 | . . . . 2 . . Database Lockouts . | . . . . . . . Manual 2 | . 2 . . . . . Terminals 28 | . 5 2 . 16 5 . Fabricators . | . . . . . . . Repair Stations . | . . . . . . . Recycling Units . | . . . . . . . Scanalyzers . | . . . . . . . Garrison Access 1 | . . . . . 1 . Terminal Hacks 12 | . 2 1 1 7 1 . Record 3 | . 2 . . 1 . . Robot Analysis 1 | . . . . 1 . . Open Door 1 | . . . 1 . . . Emergency Access Points 2 | . . . . 2 . . Unreport Threat 1 | . . 1 . . . . Dispatch Records 1 | . . . . 1 . . Patrol Status 1 | . . . . 1 . . Zone Layout 2 | . . . . 1 1 . Fabricator Hacks . | . . . . . . . Repair Station Hacks . | . . . . . . . Recycling Unit Hacks . | . . . . . . . Scanalyzer . | . . . . . . . Garrison Access Hacks 1 | . . . . . 1 . Unlock Access 1 | . . . . . 1 . Unauthorized Hacks . | . . . . . . . Terminals . | . . . . . . . Fabricators . | . . . . . . . Repair Stations . | . . . . . . . Recycling Units . | . . . . . . . Scanalyzers . | . . . . . . . Garrison Access . | . . . . . . . Data Cores Recovered . | . . . . . . . Used . | . . . . . . . Hacking Detections 10 | . 2 1 . 4 3 . Full Trace Events 2 | . 1 . . . 1 . Feedback Events . | . . . . . . . Feedback Blocked . | . . . . . . . Robot Schematics Acquired . | . . . . . . . Robots Built . | . . . . . . . Matter . | . . . . . . . Time . | . . . . . . . Total Robot Build Rating . | . . . . . . . Part Schematics Acquired . | . . . . . . . Parts Built . | . . . . . . . Matter . | . . . . . . . Time . | . . . . . . . Total Part Build Rating . | . . . . . . . Parts Repaired . | . . . . . . . Time . | . . . . . . . Parts Recycled . | . . . . . . . Recycled Matter . | . . . . . . . Retrieved Matter . | . . . . . . . Retrieved Components . | . . . . . . . Parts Scanalyzed . | . . . . . . . Part Schematics Acquired . | . . . . . . . Parts Damaged . | . . . . . . . Bothacking | -11 -10 -9 -9 -8 -7 -7 ------------ Run | Scr Mat Mat Min Mat Fac Sto Used RIF Installer . | . . . . . . . Robots Hacked . | . . . . . . . Non-combat . | . . . . . . . Combat . | . . . . . . . Robot Hacks Applied . | . . . . . . . Relay Couplers Released . | . . . . . . . Robots Rewired . | . . . . . . . Allies Hacked . | . . . . . . . Hacks Repelled . | . . . . . . . Allies | -11 -10 -9 -9 -8 -7 -7 -------- Run | Scr Mat Mat Min Mat Fac Sto Total Allies . | . . . . . . . Largest Group . | . . . . . . . Highest-Rated Group . | . . . . . . . Highest-Rated Ally . | . . . . . . . Total Orders . | . . . . . . . Ally Attacks . | . . . . . . . Total Damage . | . . . . . . . Kills . | . . . . . . . Allies Corrupted . | . . . . . . . Allies Melted . | . . . . . . . Intel | -11 -10 -9 -9 -8 -7 -7 ------- Run | Scr Mat Mat Min Mat Fac Sto Robot Analysis Total 1 | . . . . 1 . . Derelict Logs Recovered 1 | . . . 1 . . . Drone Launches . | . . . . . . . Drone Recoveries . | . . . . . . . Exploration | -11 -10 -9 -9 -8 -7 -7 ------------- Run | Scr Mat Mat Min Mat Fac Sto Turns Passed 4157 | 87 447 632 945 854 989 203 Spaces Moved 2016 | 53 312 321 489 359 439 43 Core 19 | 17 . . . . . 2 Treads 1274 | . . 282 486 359 147 . Legs 492 | 36 184 . 3 . 228 41 Wheels 231 | . 128 39 . . 64 . Hover . | . . . . . . . Flight . | . . . . . . . Fastest Speed 50 | 50 80 90 180 180 120 157 Average Speed 162 | 126 103 156 180 180 171 214 Slowest Speed 1500 | 250 120 180 360 183 250 1500 Overloaded Moves . | . . . . . . . Propulsion Burnouts . | . . . . . . . Robots Hopped . | . . . . . . . Cave-ins Triggered . | . . . . . . . Exploration Rate (%) 31 | 4 50 30 82 34 10 10 Regions Visited 6 Branch Regions 2 Pre-discovered Areas . | . . . . . . . Known Exits Taken 1 | . . . 1 . . . Unknown Exits Taken 5 | 1 1 1 . 1 1 . Scrap Searched 3 | . . . 3 . . . Spaces Dug . | . . . . . . . Terrain Destroyed 55 | . 15 . . 36 4 . Melee . | . . . . . . . Projectile 9 | . . . . 5 4 . AOE 46 | . 15 . . 31 . . Terrain Rammed . | . . . . . . . Walls Destroyed . | . . . . . . . Machines Disabled . | . . . . . . . Actions | -11 -10 -9 -9 -8 -7 -7 --------- Run | Scr Mat Mat Min Mat Fac Sto Total 2594 | 65 384 424 544 473 604 100 Wait 172 | . 10 22 33 14 88 5 Move 2010 | 52 311 320 488 358 438 43 Hop . | . . . . . . . Pick Up 60 | 4 12 20 4 11 9 . Fast Attach 37 | 6 6 6 6 5 8 . Attach 26 | . . 3 1 10 8 4 Detach 6 | . 1 2 1 2 . . Swap 21 | 1 2 8 . 6 1 3 Drop 59 | . 13 22 7 8 7 2 Fire 164 | 2 29 21 4 50 37 21 Melee 22 | . . . . . . 22 Ram . | . . . . . . . Kick . | . . . . . . . Crush 9 | . . . . 9 . . Escape Stasis 8 | . . . . . 8 . Rewire . | . . . . . . . Trap . | . . . . . . . Miscellaneous . | . . . . . . . Route ------- -11/Scrapyard -10/Materials -9/Materials -9/Mines -8/Materials -7/Factory (discovered 2 exits: [*Sto] / Gar) -7/Storage History --------- Turn | Location | Event 14 | -11/Scrapyard | Discovered new exit (range 16) 88 | -11/Scrapyard | Entered Materials 313 | -10/Materials | Build established: Mutant 524 | -10/Materials | Discovered new exit (range 7) 535 | -10/Materials | Entered another Materials area 535 | -9/Materials | Evolved 2 slots: Utility x2 1140 | -9/Materials | Discovered new exit (range 16) 1167 | -9/Materials | Entered Mines 1193 | -9/Mines | Identified exit to Materials 1289 | -9/Mines | Build established: Hauler-Mutant 1297 | -9/Mines | YI-UF0 nonchalantly dropped a Grenade Launcher on the ground 1437 | -9/Mines | Met a Derelict who couldn't figure out how to use a Trap Extractor 2112 | -9/Mines | Entered Materials 2112 | -8/Materials | Evolved 2 slots: Propulsion x1, Utility x1 2348 | -8/Materials | Lost 4 parts (1p2u1w) 2449 | -8/Materials | Lost 5 parts (1p1n2u1w) 2817 | -8/Materials | Discovered new exit (range 16) 2966 | -8/Materials | Entered Factory 2966 | -7/Factory | Evolved 2 slots: Propulsion x1, Utility x1 3226 | -7/Factory | Lost 9 parts (1p3n3u2w) 3470 | -7/Factory | Identified exit to Garrison 3587 | -7/Factory | Garrison activated, responded to threat 3916 | -7/Factory | Discovered new exit (range 5) 3955 | -7/Factory | Entered Storage 3965 | -7/Storage | Lost 3 parts (1p1n1u) 4113 | -7/Storage | Core integrity fell below 50% 4133 | -7/Storage | Lost 11 parts (2p4n3u2w) 4139 | -7/Storage | Core integrity fell below 20% 4158 | -7/Storage | Destroyed by Y-54 Guardian with Flak Gun Last Messages --------------- 04085_ Power Maul temporarily disabled. 04085_ Destroyed Imp. Deuterium Engine. 04085_ Titanium Leg destroyed. 04089_ L-41 Fighter destroyed. 04091_ Transfer Shaft disabled. 04095_ G-47 Trooper destroyed. 04097_ Overheating: Hvy. Ion Cannon damaged (-15). 04097_ Overheating: Hrd. Heavy Armor Plating damaged (-25). 04098_ Hvy. Ion Cannon destroyed. 04099_ Acquired 4 matter. 04102_ Hrd. Heavy Armor Plating destroyed. 04105_ R-06 Scavenger collects Aluminum Leg. 04106_ R-06 Scavenger collects Axe. 04110_ R-06 Scavenger collects Imp. Heat Sink. 04118_ System corrupted: Energy discharge (-25). 04138_ Destroyed Imp. Heat Sink. 04138_ Y-54 Guardian system corrupted by crushing effect. 04158_ Destroyed Gatling Laser. 04158_ Y-54 Guardian system corrupted by crushing effect. 04158_ Power Maul destroyed. Map ----- +----------------------------------------------------+ | ?????????????????????????????????????????????????? | | ?????????????????????????????????????????????????? | | ?????????????????????????????????????????????????? | | ?????????????????????????????????????????????????? | | ?????????????????????????????????????????????????? | | ?????????????????????????????????????????????????? | | ?????????????????????????????????????????????????? | | ?????????????????????????????????????????????????? | | ?????????????????????????????????????????????????? | | ?????????????????????????????????????????????????? | | ????""???????????????????????????????????????????? | | ????? ???????????#+#####????????????????????????? | | ####+##/########### ###########??????????????? | | ^ " ??????????????? | | [!|! "T ?????????????? | | ^= = ??????????????? | | ################### #####????????????????????? | | ?????????????????####+#####??????????????????????? | | ?????????????????# #??????????????????????? | | ?????????????????# """ #??????????????????????? | | ?????????????????# """g#??????????????????????? | | ?????????????????# """ #??????????????????????? | | ?????????????????# %#??????????????????????? | | ?????????????????# """ #??????????????????????? | | ?????????????????# "" %#??????????????????????? | | ?????????????????# """@#??????????????????????? | | ?????????????????# Y #?????????????????????? | | ?????????????????###########?????????????????????? | | ?????????????????????????????????????????????????? | | ?????????????????????????????????????????????????? | | ?????????????????????????????????????????????????? | | ?????????????????????????????????????????????????? | | ?????????????????????????????????????????????????? | | ?????????????????????????????????????????????????? | | ?????????????????????????????????????????????????? | | ?????????????????????????????????????????????????? | | ?????????????????????????????????????????????????? | | ?????????????????????????????????????????????????? | | ?????????????????????????????????????????????????? | | ?????????????????????????????????????????????????? | | ?????????????????????????????????????????????????? | | ?????????????????????????????????????????????????? | | ?????????????????????????????????????????????????? | | ?????????????????????????????????????????????????? | | ?????????????????????????????????????????????????? | | ?????????????????????????????????????????????????? | | ?????????????????????????????????????????????????? | | ?????????????????????????????????????????????????? | | ?????????????????????????????????????????????????? | | ?????????????????????????????????????????????????? | +----------------------------------------------------+ Best States ------------- Heat Dissipation 34 Energy Generation 16 Energy Capacity 565 Matter Stores 300 Matter Capacity 300 Sight Range 16 Robot Scan Range 16 Terrain Scan Range 16 Terrain Scan Density 10 Base Temperature (-) 100 Armor Coverage 600 Evasion (%) 44 Targeting Accuracy 8 Recoil Reduction 4 Item Schematics ----------------- None Robot Schematics ------------------ None Fabricated ------------ Nothing Alien Tech Used ----------------- None Achievements -------------- None Challenges ------------ None Game ------ Seed MasterMeleeCutter Manual? 0 Play Time 01:36:51 Cumulative 43.5 hours Start 2021.12.13 @ 12:49:30 End 2021.12.13 @ 16:52:25 Sessions 1 Manual Loads 0 Difficulty Rogue Special Mode None Game No. 58 Rogue 58 Adventurer 0 Explorer 0 Win Type - Total 0 Types 0/0/0/0/0/0/0/0/0 Lore% 20 Gallery% 30 Achievement% 20 Wizard Run 0 Options --------- ASCII 0 Keyboard 1 Movement Numpad Keybinds 0 Fullscreen 2 Font 24/Smallcaps Map View 113x50 Tactical HUD 1 Map Filters NONE Filters NONE Steam 1 RUN: ab75349c-e848-40bb-b719-8fb7a726514e